bitfinex/quotes_BTCUSD_20250213
["timestamp","ask_amount","ask_price","bid_price","bid_amount"]
[1739472367971,0.22005388,95800.0,95772.0,0.00013212]
[1739472368226,0.22005388,95790.0,95772.0,0.00013212]
[1739472368399,1.039485,95789.0,95772.0,0.00013212]
[1739472368633,0.15662,95773.0,95772.0,0.00013212]
[1739472369309,1.145155,95773.0,95772.0,0.00013212]
[1739472369925,1.091784,95773.0,95772.0,0.00013212]
[1739472370134,0.481573,95773.0,95772.0,0.00013212]
[1739472370333,0.324953,95773.0,95772.0,0.00013212]
[1739472370569,0.15662,95773.0,95772.0,0.00013212]
[1739472371181,2.049012,95773.0,95772.0,0.00013212]
[1739472371382,1.98217524,95773.0,95772.0,0.00013212]
[1739472371941,0.27407024,95773.0,95772.0,0.00013212]
[1739472372549,2.79589924,95773.0,95772.0,0.00013212]
[1739472372758,2.68991559,95773.0,95772.0,0.00013212]
[1739472372977,1.89250959,95773.0,95772.0,0.00013212]
[1739472373339,1.78376359,95773.0,95772.0,0.00013212]
[1739472373541,1.39741359,95773.0,95772.0,0.00013212]
[1739472373742,0.24002259,95773.0,95772.0,0.00013212]
[1739472373957,0.39664259,95773.0,95772.0,0.00013212]
[1739472374159,0.24002259,95773.0,95772.0,0.00013212]
[1739472374558,0.776756,95773.0,95772.0,0.00013212]
[1739472374680,0.59439,95773.0,95772.0,0.00013212]
[1739472374894,0.559747,95773.0,95772.0,0.00013212]
[1739472375117,0.9409,95775.0,95772.0,0.00013212]
[1739472375292,1.092994,95789.0,95772.0,0.00013212]
[1739472375511,0.62898,95788.0,95778.0,0.0825]
[1739472375754,0.400761,95787.0,95783.0,0.156603]
[1739472375933,0.552657,95790.0,95778.0,0.0825]
[1739472376175,0.14881316,95802.0,95778.0,0.0825]
[1739472376494,0.22005388,95800.0,95778.0,0.39381765]
[1739472376695,1.331553,95799.0,95778.0,0.18500365]
[1739472376813,0.156591,95791.0,95780.0,0.208811]
[1739472377022,0.367219,95790.0,95787.0,0.156597]
[1739472377229,0.208722,95821.0,95789.0,0.15]
[1739472377430,2.111655,95820.0,95808.0,0.20875]
[1739472377721,0.006,95828.0,95806.0,0.0782]
[1739472377722,1.424976,95819.0,95806.0,0.0782]
[1739472377931,1.605758,95818.0,95806.0,0.234765]
[1739472378137,1.110867,95817.0,95806.0,0.234765]
[1739472378357,1.110867,95817.0,95806.0,0.0782]
[1739472378530,0.241509,95816.0,95815.0,0.156551]
[1739472378771,0.00044007,95817.0,95816.0,0.15655]
[1739472379585,0.15807507,95817.0,95816.0,0.25905365]
[1739472379722,0.31502207,95817.0,95816.0,0.25905365]
[1739472380448,0.00044007,95817.0,95816.0,0.25905365]
[1739472380636,0.00044007,95817.0,95816.0,0.43205365]
[1739472380880,0.00044007,95817.0,95816.0,0.51505365]
[1739472382023,0.00044007,95817.0,95816.0,0.49205365]
[1739472382236,0.00044007,95817.0,95816.0,0.49405365]
[1739472382639,0.00044007,95817.0,95816.0,0.49205365]
[1739472382843,0.00044007,95817.0,95816.0,0.33550365]
[1739472383053,0.18892507,95817.0,95816.0,0.083]
[1739472383255,1.28118807,95817.0,95808.0,0.156562]
[1739472383457,1.186561,95816.0,95802.0,0.0779]
[1739472383656,0.208735,95815.0,95802.0,0.0779]
[1739472383882,1.415411,95814.0,95802.0,0.0779]
[1739472384157,1.797342,95816.0,95791.0,0.0787]
[1739472384362,0.20875,95808.0,95791.0,0.0787]
[1739472384677,0.901754,95807.0,95795.0,0.156583]
[1739472384879,0.373611,95806.0,95791.0,0.0787]
[1739472385068,0.156571,95803.0,95802.0,0.001]
[1739472385271,0.404124,95803.0,95802.0,0.001]
[1739472385470,0.164847,95806.0,95803.0,0.156571]
[1739472385696,0.72533,95812.0,95802.0,0.001]
[1739472385923,0.685137,95811.0,95804.0,0.156569]
[1739472386261,0.302282,95814.0,95806.0,0.208755]
[1739472386399,0.156556,95812.0,95806.0,0.10250365]
[1739472386602,0.697557,95811.0,95791.0,0.0817]
[1739472386813,0.156559,95810.0,95803.0,0.004]
[1739472387235,1.251287,95812.0,95793.0,0.15]
[1739472387236,0.852219,95809.0,95793.0,0.15]
[1739472387410,0.15658,95798.0,95789.0,0.15]
[1739472387630,0.523108,95797.0,95789.0,0.15]
[1739472388022,1.618217,95809.0,95789.0,0.15]
[1739472388193,1.269196,95808.0,95791.0,0.2287]
[1739472388399,0.156569,95804.0,95803.0,0.002]
[1739472388811,0.684222,95806.0,95805.0,0.156568]
[1739472389014,0.684222,95806.0,95803.0,0.002]
[1739472389015,0.393233,95806.0,95803.0,0.002]
[1739472389221,0.00044007,95817.0,95803.0,0.002]
[1739472389386,0.171082,95805.0,95804.0,0.156569]
[1739472389596,0.213139,95805.0,95796.0,0.15]
[1739472389802,0.00044007,95817.0,95803.0,0.005]
[1739472390008,0.308204,95816.0,95803.0,0.005]
[1739472390185,0.197655,95816.0,95815.0,0.156551]
[1739472390386,0.00044007,95817.0,95816.0,0.15655]
[1739472390615,0.22000607,95817.0,95816.0,0.10250365]
[1739472390785,0.00044007,95817.0,95816.0,0.33575365]
[1739472391368,0.00044007,95817.0,95816.0,0.38245365]
[1739472391575,0.00044007,95817.0,95816.0,0.53245365]
[1739472391789,0.00044007,95817.0,95816.0,0.55545365]
[1739472392402,4e-07,95831.0,95830.0,0.306527]
[1739472392607,4e-07,95831.0,95830.0,0.55373065]
[1739472393230,4e-07,95831.0,95830.0,0.56373065]
[1739472393651,0.0004,95849.0,95840.0,0.30651]
[1739472393871,0.0004,95849.0,95840.0,0.48421365]
[1739472394476,0.0004,95849.0,95840.0,0.50721365]
[1739472395203,0.00122408,95841.0,95840.0,0.51421365]
[1739472395881,0.00122408,95841.0,95840.0,0.52121365]
[1739472396249,0.00122408,95841.0,95840.0,0.34170365]
[1739472397229,0.00122408,95841.0,95840.0,0.49821365]
[1739472397551,0.00122408,95841.0,95840.0,0.49121365]
[1739472398209,0.00022408,95841.0,95840.0,0.50721365]
[1739472398414,0.00122408,95841.0,95840.0,0.51421365]
[1739472398848,0.00122408,95841.0,95840.0,0.50721365]
[1739472399041,0.00022408,95841.0,95840.0,0.51421365]
[1739472399185,0.00122408,95841.0,95840.0,0.52121365]
[1739472399802,0.00122408,95841.0,95840.0,0.51421365]
[1739472400259,0.00022408,95841.0,95840.0,0.50721365]
[1739472400665,0.00022408,95841.0,95840.0,0.51421365]
[1739472401016,0.00022408,95841.0,95840.0,0.55991365]
[1739472401803,0.00122408,95841.0,95840.0,0.56691365]
[1739472405317,0.00122408,95841.0,95840.0,0.54391365]
[1739472405651,0.00122408,95841.0,95840.0,0.56691365]
[1739472408393,1.6e-07,95847.0,95846.0,0.306501]
[1739472408590,1.6e-07,95849.0,95848.0,0.329497]
[1739472408729,0.00022366,95872.0,95871.0,0.15646]
[1739472408936,0.00022366,95872.0,95871.0,0.40896365]
[1739472409523,0.00035571,95872.0,95871.0,0.40896365]
[1739472411758,0.00035571,95872.0,95871.0,0.41996365]
[1739472414779,0.328117,95872.0,95871.0,0.011]
[1739472414981,0.3282235,95872.0,95871.0,0.011]
[1739472415518,0.3282235,95872.0,95871.0,0.006]
[1739472415722,0.15647,95865.0,95855.0,0.156485]
[1739472416114,0.1717655,95872.0,95853.0,0.08348073]
[1739472416115,0.62412,95864.0,95853.0,0.08348073]
[1739472416297,2.024573,95869.0,95854.0,0.10250365]
[1739472416468,0.156487,95854.0,95853.0,0.08348073]
[1739472416678,0.884465,95854.0,95853.0,0.08348073]
[1739472416891,0.576992,95854.0,95853.0,0.08348073]
[1739472417081,0.201395,95854.0,95853.0,0.08348073]
[1739472417279,0.888659,95859.0,95840.0,0.08348073]
[1739472417488,0.156491,95853.0,95844.0,0.156503]
[1739472417648,1.048782,95852.0,95840.0,0.18598438]
[1739472417844,0.422925,95851.0,95850.0,0.156494]
[1739472418045,0.536172,95868.0,95850.0,0.10250365]
[1739472418258,0.915764,95871.0,95851.0,0.10250365]
[1739472418465,0.156476,95862.0,95851.0,0.10250365]
[1739472418717,1.232529,95861.0,95853.0,0.004]
[1739472419048,0.249325,95860.0,95851.0,0.10250365]
[1739472419253,1.934075,95869.0,95851.0,0.10250365]
[1739472419476,0.22005388,95861.0,95823.0,0.0797]
[1739472419695,1.80523565,95868.0,95838.0,0.08348073]
[1739472419696,0.22005388,95852.0,95838.0,0.08348073]
[1739472419922,0.498188,95851.0,95849.0,0.08348073]
[1739472420100,0.174379,95850.0,95839.0,0.10250365]
[1739472420334,0.1335,95870.0,95840.0,0.12550365]
[1739472420335,0.326388,95867.0,95840.0,0.12550365]
[1739472420544,0.419352,95866.0,95844.0,0.173]
[1739472420749,0.15646,95871.0,95860.0,0.156476]
[1739472420975,0.152089,95871.0,95870.0,0.156461]
[1739472421214,0.0001065,95872.0,95871.0,0.15646]
[1739472421427,0.0001065,95872.0,95871.0,0.25896365]
[1739472422224,0.1323235,95872.0,95871.0,0.25896365]
[1739472422466,0.0001065,95872.0,95871.0,0.40896365]
[1739472424467,0.0001065,95872.0,95871.0,0.25250365]
[1739472424652,0.0001065,95872.0,95871.0,0.40896365]
[1739472424852,0.0001065,95872.0,95871.0,0.41396365]
[1739472425163,0.0001065,95872.0,95871.0,0.40896365]
[1739472425362,0.0001065,95872.0,95871.0,0.41896365]
[1739472425572,0.0001065,95872.0,95871.0,0.41396365]
[1739472425816,0.0001065,95872.0,95871.0,0.43196365]
[1739472425952,0.0001065,95872.0,95871.0,0.43696365]
[1739472426152,0.0001065,95872.0,95871.0,0.44196365]
[1739472426404,0.0001065,95872.0,95871.0,0.4744768]
[1739472427400,0.0001065,95872.0,95871.0,0.41896365]
[1739472427966,0.0001065,95872.0,95871.0,0.26250365]
[1739472428159,0.0001065,95872.0,95871.0,0.16]
[1739472428281,0.0001065,95872.0,95871.0,0.155]
[1739472428484,0.0001065,95872.0,95871.0,0.31746]
[1739472428735,0.0001065,95872.0,95871.0,0.31246]
[1739472428914,0.0001065,95872.0,95871.0,0.156]
[1739472429193,1.824826,95888.0,95871.0,0.005]
[1739472429400,0.156451,95877.0,95871.0,0.005]
[1739472429606,1.093973,95876.0,95871.0,0.01]
[1739472429806,0.156458,95872.0,95871.0,0.01]
[1739472430015,0.478436,95874.0,95871.0,0.01]
[1739472430214,0.156445,95880.0,95871.0,0.01]
[1739472430474,0.75514,95879.0,95871.0,0.01]
[1739472430958,1.482847,95889.0,95871.0,0.005]
[1739472431134,0.281796,95888.0,95872.0,0.10250365]
[1739472431371,0.516703,95891.0,95888.0,0.156431]
[1739472431573,0.01940049,95899.0,95891.0,0.156427]
[1739472431800,0.435207,95898.0,95891.0,0.156427]
[1739472432004,0.332573,95897.0,95880.0,0.208594]
[1739472432208,0.28181,95896.0,95895.0,0.156421]
[1739472432560,0.00035587,95904.0,95902.0,0.156409]
[1739472432759,0.158629,95903.0,95884.0,0.08348073]
[1739472432987,0.158629,95903.0,95885.0,0.10250365]
[1739472433409,0.002,95896.0,95886.0,0.208581]
[1739472433623,0.664348,95895.0,95892.0,0.156425]
[1739472433845,0.664348,95895.0,95887.0,0.10250365]
[1739472434050,0.002,95896.0,95888.0,0.156432]
[1739472434275,0.878957,95895.0,95889.0,0.25893265]
[1739472434404,0.835117,95895.0,95889.0,0.25893265]
[1739472434626,0.899947,95895.0,95886.0,0.005]
[1739472434842,0.666999,95895.0,95887.0,0.156434]
[1739472435059,0.383519,95895.0,95882.0,0.208589]
[1739472435257,0.320823,95895.0,95888.0,0.005]
[1739472435461,0.440327,95898.0,95888.0,0.005]
[1739472435661,0.156419,95897.0,95888.0,0.005]
[1739472435875,0.582567,95896.0,95888.0,0.005]
[1739472436230,1.085546,95899.0,95884.0,0.156438]
[1739472436458,1.015632,95898.0,95888.0,0.002]
[1739472436570,0.824469,95897.0,95888.0,0.002]
[1739472436776,1.898494,95903.0,95888.0,0.002]
[1739472436980,0.156411,95901.0,95890.0,0.156427]
[1739472437184,0.89902,95900.0,95890.0,0.156428]
[1739472437404,1.055433,95900.0,95890.0,0.156428]
[1739472437643,0.303285,95899.0,95889.0,0.10250365]
[1739472437852,0.155408,95898.0,95889.0,0.10250365]
[1739472438115,0.002,95896.0,95895.0,0.156421]
[1739472438323,0.341458,95896.0,95895.0,0.156421]
[1739472438471,0.00035587,95904.0,95902.0,0.156409]
[1739472438687,0.288496,95903.0,95891.0,0.10250365]
[1739472439255,0.104099,95903.0,95902.0,0.156409]
[1739472439455,0.00035587,95904.0,95903.0,0.306408]
[1739472439688,0.00235587,95904.0,95903.0,0.43191165]
[1739472440555,8.7e-07,95904.0,95903.0,0.83861165]
[1739472440972,0.0001065,95907.0,95906.0,0.306403]
[1739472441178,0.0001065,95907.0,95906.0,0.43190665]
[1739472441523,5e-07,95907.0,95906.0,0.50910665]
[1739472441713,5e-07,95907.0,95906.0,1.37810665]
[1739472441910,0.00022408,95915.0,95914.0,0.15639]
[1739472442114,8e-08,95915.0,95914.0,0.5940004]
[1739472442459,8e-08,95915.0,95914.0,0.56059365]
[1739472443580,8e-08,95915.0,95914.0,0.57059365]
[1739472443833,8e-08,95915.0,95914.0,0.60292705]
[1739472444017,8e-08,95915.0,95914.0,0.56059365]
[1739472444375,8e-08,95915.0,95914.0,0.56759365]
[1739472444585,8e-08,95915.0,95914.0,0.57459365]
[1739472444792,8e-08,95915.0,95914.0,0.56759365]
[1739472445398,8e-08,95915.0,95914.0,0.56059365]
[1739472445601,8e-08,95915.0,95914.0,0.56759365]
[1739472446488,8e-08,95915.0,95914.0,0.89139365]
[1739472446825,8e-08,95915.0,95914.0,0.89839365]
[1739472448018,7.8e-07,95937.0,95925.0,0.15]
[1739472448201,7.8e-07,95937.0,95936.0,0.51065765]
[1739472448418,0.00044069,95937.0,95936.0,1.36965765]
[1739472448830,6.9e-07,95937.0,95936.0,1.36965765]
[1739472449041,6.9e-07,95937.0,95936.0,1.38858125]
[1739472449246,6.9e-07,95937.0,95936.0,0.89978125]
[1739472449395,6.9e-07,95937.0,95936.0,0.90978125]
[1739472450578,6.9e-07,95937.0,95936.0,0.91678125]
[1739472450979,6.9e-07,95937.0,95936.0,0.90678125]
[1739472451168,6.9e-07,95937.0,95936.0,0.9115278]
[1739472451432,6.9e-07,95937.0,95936.0,0.9345278]
[1739472452392,6.9e-07,95937.0,95936.0,0.9156042]
[1739472452569,6.9e-07,95937.0,95936.0,0.87185765]
[1739472452778,6.9e-07,95937.0,95936.0,0.89485765]
[1739472452984,6.9e-07,95937.0,95936.0,0.87185765]
[1739472453509,6.9e-07,95937.0,95936.0,0.89485765]
[1739472453862,6.9e-07,95937.0,95936.0,0.87185765]
[1739472454560,6.9e-07,95937.0,95936.0,0.89485765]
[1739472455774,6.9e-07,95937.0,95936.0,0.84845765]
[1739472455983,6.9e-07,95937.0,95936.0,0.76965765]
[1739472456399,6.9e-07,95937.0,95936.0,0.74665765]
[1739472457465,6.9e-07,95937.0,95936.0,0.76965765]
[1739472460295,6.9e-07,95937.0,95936.0,0.74665765]
[1739472460900,0.15635269,95937.0,95936.0,0.014]
[1739472461300,1.25725369,95937.0,95936.0,0.014]
[1739472461532,0.76830169,95937.0,95936.0,0.007]
[1739472462385,0.33100669,95937.0,95936.0,0.007]
[1739472462586,6.9e-07,95937.0,95936.0,0.007]
[1739472462731,6.9e-07,95937.0,95936.0,0.25885765]
[1739472462929,6.9e-07,95937.0,95936.0,0.10772709]
[1739472463142,6.9e-07,95937.0,95936.0,0.11172709]
[1739472463348,0.00010709,95937.0,95936.0,0.10272709]
[1739472463553,0.18339909,95937.0,95936.0,0.10272709]
[1739472463776,0.00010709,95937.0,95936.0,0.25908109]
[1739472464040,0.13561309,95937.0,95936.0,0.10272709]
[1739472464265,0.00010709,95937.0,95936.0,0.25908109]
[1739472465018,0.00010709,95937.0,95936.0,0.28208109]
[1739472465444,0.00010709,95937.0,95936.0,0.43208109]
[1739472466003,0.00010709,95937.0,95936.0,0.75588109]
[1739472466193,0.00010709,95937.0,95936.0,0.75888109]
[1739472466958,0.00010709,95937.0,95936.0,0.75588109]
[1739472467160,0.00010709,95937.0,95936.0,0.76288109]
[1739472467804,0.00010709,95937.0,95936.0,0.76988109]
[1739472469361,0.0001065,95945.0,95944.0,0.306341]
[1739472469679,0.00023842,95945.0,95944.0,0.43184465]
[1739472470469,0.00023842,95945.0,95944.0,0.43884465]
[1739472471189,0.00023842,95945.0,95944.0,0.44584465]
[1739472471925,0.00023842,95945.0,95944.0,0.42284465]
[1739472472914,0.00023842,95945.0,95944.0,0.26650365]
[1739472473119,0.00023842,95945.0,95944.0,0.42284465]
[1739472473410,0.00023842,95945.0,95944.0,0.26650365]
[1739472473655,0.15657742,95945.0,95944.0,0.11650365]
[1739472473881,1.12226442,95945.0,95944.0,0.014]
[1739472474150,1.34105342,95945.0,95944.0,0.014]
[1739472474400,0.77699542,95945.0,95944.0,0.014]
[1739472474652,0.57855242,95945.0,95944.0,0.014]
[1739472474851,0.53222042,95945.0,95944.0,0.007]
[1739472475099,0.37588142,95945.0,95944.0,0.007]
[1739472475382,0.16206942,95945.0,95944.0,0.26584465]
[1739472475605,0.00023842,95945.0,95944.0,0.10950365]
[1739472475833,0.64978342,95945.0,95944.0,0.11350365]
[1739472476029,0.00023842,95945.0,95944.0,0.11350365]
[1739472476273,0.74976142,95945.0,95944.0,0.11350365]
[1739472476541,0.51260042,95945.0,95944.0,0.10650365]
[1739472476712,0.48649542,95945.0,95944.0,0.10650365]
[1739472477137,0.48649542,95945.0,95944.0,0.004]
[1739472477464,0.00023842,95945.0,95944.0,0.004]
[1739472477838,0.54322942,95945.0,95944.0,0.007]
[1739472478035,0.68146642,95945.0,95944.0,0.003]
[1739472478245,0.59609942,95945.0,95944.0,0.006]
[1739472478449,0.00023842,95945.0,95944.0,0.26484465]
[1739472481881,0.00023842,95945.0,95944.0,0.43784465]
[1739472482020,0.00023842,95945.0,95944.0,0.76164465]
[1739472489302,0.00023842,95945.0,95944.0,0.79408911]
[1739472489516,0.00023842,95945.0,95944.0,0.87608911]
[1739472489926,4.2e-07,95945.0,95944.0,0.87608911]
[1739472490129,9.2e-07,95947.0,95946.0,0.306337]
[1739472490340,9.2e-07,95947.0,95946.0,1.33328511]
[1739472490958,9.2e-07,95947.0,95946.0,1.32328511]
[1739472491594,9.2e-07,95947.0,95946.0,1.33028511]
[1739472492178,9.2e-07,95947.0,95946.0,1.29784065]
[1739472493133,9.2e-07,95947.0,95946.0,1.30484065]
[1739472493668,9.2e-07,95947.0,95946.0,0.76964065]
[1739472494758,9.2e-07,95947.0,95946.0,0.44030365]
[1739472494955,9.2e-07,95947.0,95946.0,0.3378]
[1739472495160,9.2e-07,95947.0,95946.0,0.014]
[1739472495592,0.17923192,95947.0,95946.0,0.11650365]
[1739472495764,9.2e-07,95947.0,95946.0,0.26584065]
[1739472495964,9.2e-07,95947.0,95946.0,0.10950365]
[1739472496163,0.15633692,95947.0,95946.0,0.11450365]
[1739472496386,9.2e-07,95947.0,95946.0,0.27084065]
[1739472496563,9.2e-07,95947.0,95946.0,0.26384065]
[1739472497198,9.2e-07,95947.0,95946.0,0.10750365]
[1739472498367,0.20709892,95947.0,95946.0,0.10750365]
[1739472498563,9.2e-07,95947.0,95946.0,0.11350365]
[1739472499435,0.36243792,95947.0,95946.0,0.11350365]
[1739472499638,9.2e-07,95947.0,95946.0,0.11350365]
[1739472500055,0.15633692,95947.0,95946.0,0.11350365]
[1739472500240,0.79365092,95947.0,95946.0,0.011]
[1739472500443,1.06173192,95947.0,95946.0,0.011]
[1739472500669,1.29069292,95947.0,95946.0,0.011]
[1739472500873,1.11646892,95947.0,95946.0,0.011]
[1739472501829,0.91239992,95947.0,95946.0,0.011]
[1739472502034,0.90007792,95947.0,95946.0,0.005]
[1739472502256,0.82501992,95947.0,95946.0,0.005]
[1739472502584,0.79793092,95947.0,95946.0,0.002]
[1739472502782,0.62651992,95947.0,95946.0,0.004]
[1739472502920,0.56530392,95947.0,95946.0,0.002]
[1739472503122,0.56530392,95947.0,95946.0,0.004]
[1739472503600,0.49362692,95947.0,95946.0,0.004]
[1739472504153,0.31286992,95947.0,95946.0,0.10650365]
[1739472504371,9.2e-07,95947.0,95946.0,0.26284065]
[1739472504771,9.2e-07,95947.0,95946.0,0.10650365]
[1739472505869,0.63761392,95947.0,95946.0,0.10650365]
[1739472506070,0.58796492,95947.0,95946.0,0.004]
[1739472506204,0.15633692,95947.0,95946.0,0.004]
[1739472506399,0.94371892,95947.0,95946.0,0.004]
[1739472506613,1.15249892,95947.0,95946.0,0.004]
[1739472506940,0.16500092,95947.0,95946.0,0.26284065]
[1739472507139,9.2e-07,95947.0,95946.0,0.28584065]
[1739472507346,9.2e-07,95947.0,95946.0,0.51634065]
[1739472508361,9.2e-07,95947.0,95946.0,0.51434065]
[1739472508739,9.2e-07,95947.0,95946.0,0.56604065]
[1739472508945,9.2e-07,95947.0,95946.0,1.42304065]
[1739472509424,9.2e-07,95947.0,95946.0,1.42104065]
[1739472509637,9.2e-07,95947.0,95946.0,1.42604065]
[1739472509785,9.2e-07,95947.0,95946.0,1.43004065]
[1739472510008,9.2e-07,95947.0,95946.0,1.42626409]
[1739472510314,9.2e-07,95947.0,95946.0,1.43326409]
[1739472511326,9.2e-07,95947.0,95946.0,1.42826409]
[1739472512510,9.2e-07,95947.0,95946.0,1.43526409]
[1739472514294,0.19000834,95970.0,95947.0,0.231448]
[1739472514499,1.025486,95969.0,95957.0,0.15]
[1739472514708,0.156302,95968.0,95959.0,0.15]
[1739472514910,1.23849,95968.0,95961.0,0.15]
[1739472515117,1.132467,95967.0,95963.0,0.15]
[1739472515323,0.898583,95966.0,95946.0,0.00022344]
[1739472515519,0.208407,95966.0,95953.0,0.156326]
[1739472515708,0.702911,95965.0,95954.0,0.25250365]
[1739472515858,0.01449277,95976.0,95956.0,0.12550365]
[1739472516055,0.602745,95975.0,95966.0,0.156304]
[1739472516287,0.175154,95974.0,95968.0,0.156302]
[1739472516492,0.332624,95975.0,95971.0,0.208394]
[1739472516680,0.240124,95975.0,95974.0,0.156292]
[1739472516873,0.01449277,95976.0,95975.0,0.15629]
[1739472517079,0.01449277,95976.0,95975.0,0.25879365]
[1739472518671,0.01449277,95976.0,95975.0,0.25979365]
[1739472519472,0.01449277,95976.0,95975.0,0.26079365]
[1739472519951,0.01449277,95976.0,95975.0,0.43379365]
[1739472520947,0.01449277,95976.0,95975.0,0.43279365]
[1739472521124,0.01459927,95976.0,95975.0,0.43979365]
[1739472521552,0.01459927,95976.0,95975.0,0.43879365]
[1739472521750,0.01459927,95976.0,95975.0,0.44579365]
[1739472522334,0.0001065,95999.0,95998.0,0.389453]
[1739472522512,5e-07,95999.0,95998.0,0.51495665]
[1739472522746,5e-07,95999.0,95998.0,1.05015665]
[1739472522949,5e-07,95999.0,95998.0,1.09635665]
[1739472524656,5e-07,95999.0,95998.0,1.10335665]
[1739472525073,5e-07,95999.0,95998.0,1.11035665]
[1739472526675,5e-07,95999.0,95998.0,1.43415665]
[1739472527300,5e-07,95999.0,95998.0,1.42715665]
[1739472527611,5e-07,95999.0,95998.0,1.43415665]
[1739472527754,5e-07,95999.0,95998.0,1.42715665]
[1739472528301,5e-07,95999.0,95998.0,1.29075665]
[1739472528499,5e-07,95999.0,95998.0,1.29775665]
[1739472528703,5e-07,95999.0,95998.0,1.30475665]
[1739472528877,5e-07,95999.0,95998.0,1.29775665]
[1739472529290,5e-07,95999.0,95998.0,1.30475665]
[1739472529497,0.00448969,96000.0,95999.0,0.173]
[1739472529706,0.00448969,96000.0,95999.0,0.43175465]
[1739472530727,0.00448969,96000.0,95999.0,0.43875465]
[1739472531135,2.5e-07,96000.0,95999.0,0.52223538]
[1739472531483,2.5e-07,96000.0,95999.0,0.52105465]
[1739472532221,2.5e-07,96000.0,95999.0,0.52805465]
[1739472532417,2.5e-07,96000.0,95999.0,1.38005465]
[1739472532785,2.5e-07,96000.0,95999.0,1.37305465]
[1739472532945,2.5e-07,96000.0,95999.0,1.38005465]
[1739472533327,2.5e-07,96000.0,95999.0,1.37305465]
[1739472533754,2.5e-07,96000.0,95999.0,1.38005465]
[1739472533964,2.5e-07,96000.0,95999.0,1.38705465]
[1739472534140,2.5e-07,96000.0,95999.0,1.29775465]
[1739472534348,0.00010675,96000.0,95999.0,1.29775465]
[1739472534566,0.00010675,96000.0,95999.0,1.30475465]
[1739472534772,0.00010675,96000.0,95999.0,1.29775465]
[1739472535192,0.00010675,96000.0,95999.0,1.30475465]
[1739472535555,0.00010675,96000.0,95999.0,0.96150365]
[1739472535763,0.00010675,96000.0,95999.0,1.11775465]
[1739472535977,0.00010675,96000.0,95999.0,1.12475465]
[1739472536120,0.15635675,96000.0,95999.0,0.014]
[1739472536328,0.00010675,96000.0,95999.0,0.014]
[1739472536532,0.00010675,96000.0,95999.0,0.10950365]
[1739472536886,0.00010675,96000.0,95999.0,0.27275465]
[1739472537298,0.00010675,96000.0,95999.0,0.26575465]
[1739472537856,0.00010675,96000.0,95999.0,0.27275465]
[1739472538056,0.00010675,96000.0,95999.0,0.27475465]
[1739472538287,0.00010675,96000.0,95999.0,0.10450365]
[1739472538486,0.00010675,96000.0,95999.0,0.11150365]
[1739472538919,0.00010675,96000.0,95999.0,0.26775465]
[1739472539280,0.00010675,96000.0,95999.0,0.10950365]
[1739472539718,0.00010675,96000.0,95999.0,0.11650365]
[1739472539923,0.00010675,96000.0,95999.0,0.27275465]
[1739472540117,0.00010675,96000.0,95999.0,0.10250365]
[1739472540319,0.60077375,96000.0,95999.0,0.005]
[1739472540547,1.30637175,96000.0,95999.0,0.005]
[1739472540751,1.32444311,96000.0,95999.0,0.01]
[1739472540960,1.30637175,96000.0,95999.0,0.01]
[1739472541167,1.38187175,96000.0,95999.0,0.01]
[1739472541756,1.30637175,96000.0,95999.0,0.005]
[1739472541949,1.30637175,96000.0,95999.0,0.007]
[1739472542511,1.30637175,96000.0,95999.0,0.002]
[1739472542716,1.30637175,96000.0,95999.0,0.004]
[1739472543156,1.15012175,96000.0,95998.0,0.00022365]
[1739472543362,2.098129,95999.0,95998.0,0.00022365]
[1739472543566,2.078829,95999.0,95998.0,0.00022365]
[1739472543788,1.185019,95999.0,95998.0,0.00022365]
[1739472543937,0.00010675,96000.0,95998.0,0.00022365]
[1739472544184,0.00010675,96000.0,95999.0,0.25875465]
[1739472544364,0.00010675,96000.0,95999.0,0.2594924]
[1739472544711,0.00010675,96000.0,95999.0,0.4094924]
[1739472544951,0.00010675,96000.0,95999.0,0.4858924]
[1739472545057,0.00010675,96000.0,95999.0,0.5088924]
[1739472545257,0.00010675,96000.0,95999.0,0.4858924]
[1739472546724,0.00010675,96000.0,95999.0,0.48611605]
[1739472551257,0.00010675,96000.0,95999.0,0.26046505]
[1739472551456,0.00010675,96000.0,95999.0,0.25346505]
[1739472552372,0.00010675,96000.0,95999.0,0.41671605]
[1739472552906,0.00010675,96000.0,95999.0,0.42371605]
[1739472553143,0.00010675,96000.0,95999.0,0.41671605]
[1739472553356,0.00010675,96000.0,95999.0,0.40971605]
[1739472553588,0.00010675,96000.0,95999.0,0.26471605]
[1739472553790,0.00010675,96000.0,95999.0,0.26971605]
[1739472554126,0.00010675,96000.0,95999.0,0.11346505]
[1739472554550,0.00010675,96000.0,95999.0,0.26971605]
[1739472554763,0.00010675,96000.0,95999.0,0.11346505]
[1739472555166,0.00010675,96000.0,95999.0,0.26971605]
[1739472555575,0.00010675,96000.0,95999.0,0.41971605]
[1739472556134,0.00010675,96000.0,95999.0,0.51961605]
[1739472556377,0.00010675,96000.0,95999.0,0.84341605]
[1739472557707,0.00010675,96000.0,95999.0,0.74351605]
[1739472563826,0.00010675,96000.0,95999.0,0.76651605]
[1739472564891,7.5e-07,96000.0,95999.0,0.76151605]
[1739472565098,7.5e-07,96000.0,95999.0,0.83731605]
[1739472565232,7.5e-07,96000.0,95999.0,0.84431605]
[1739472565433,7.5e-07,96000.0,95999.0,0.89311605]
[1739472566038,7.5e-07,96000.0,95999.0,0.92034924]
[1739472566326,7.5e-07,96000.0,95999.0,0.91590743]
[1739472568131,7.5e-07,96000.0,95999.0,1.45110743]
[1739472568934,7.5e-07,96000.0,95999.0,1.48332793]
[1739472569115,7.5e-07,96000.0,95999.0,1.45110743]
[1739472569311,7.5e-07,96000.0,95999.0,1.52200699]
[1739472569495,7.5e-07,96000.0,95999.0,1.48979249]
[1739472573123,7.5e-07,96000.0,95999.0,1.46900111]
[1739472573700,7.5e-07,96000.0,95999.0,1.17140111]
[1739472574186,7.5e-07,96000.0,95999.0,0.80920111]
[1739472574387,7.5e-07,96000.0,95999.0,1.38691605]
[1739472579206,7.5e-07,96000.0,95999.0,1.28271605]
[1739472580090,7.5e-07,96000.0,95999.0,0.74751605]
[1739472583108,7.5e-07,96000.0,95999.0,0.11746505]
[1739472583307,7.5e-07,96000.0,95999.0,0.27371605]
[1739472583927,0.01474789,96000.0,95999.0,0.26746505]
[1739472584137,7.5e-07,96000.0,95999.0,0.26746505]
[1739472584345,7.5e-07,96000.0,95999.0,0.42371605]
[1739472586294,7.5e-07,96000.0,95999.0,0.26746505]
[1739472586517,7.5e-07,96000.0,95999.0,0.42371605]